bitfinex/quotes_ETHUSD_20260208
["timestamp","ask_amount","ask_price","bid_price","bid_amount"]
[1770550676526,1.14616046,2129.1,2128.4,0.001]
[1770550677300,1.17414991,2129.2,2128.4,0.001]
[1770550677725,3.282,2129.7,2128.5,1.23975993]
[1770550677925,0.05378203,2129.6,2128.5,1.23975993]
[1770550678332,1.1739845,2129.5,2128.6,1.17448087]
[1770550679368,1.1739845,2129.5,2128.6,0.001]
[1770550680639,0.05378203,2129.4,2128.6,0.001]
[1770550681400,1.19994249,2129.4,2128.6,0.001]
[1770550682324,0.05378203,2129.4,2128.6,0.001]
[1770550683040,1.17387425,2129.7,2128.6,0.001]
[1770550683514,0.05378203,2129.6,2128.6,0.001]
[1770550684646,1.22765628,2129.7,2128.6,0.001]
[1770550685136,1.22765628,2129.7,2128.6,1.20067693]
[1770550685925,1.17387425,2129.7,2128.6,1.20067693]
[1770550686542,0.05378203,2129.8,2128.8,0.040083]
[1770550686714,4.4568096,2129.9,2128.8,1.1432313]
[1770550686916,1.17571671,2130.0,2128.8,1.1432313]
[1770550687130,1.22949874,2130.0,2128.9,1.17431537]
[1770550687562,1.17571671,2130.0,2128.9,2.27746367]
[1770550688060,0.002,2130.0,2129.1,1.1432313]
[1770550688923,0.002,2130.0,2129.1,1.1031483]
[1770550689150,0.002,2130.0,2129.2,1.17414991]
[1770550690668,0.002,2130.0,2129.4,1.1031483]
[1770550690850,0.002,2130.0,2129.4,1.1432313]
[1770550691023,0.002,2130.0,2129.2,1.17414991]
[1770550691217,0.002,2130.0,2129.2,1.1031483]
[1770550691417,0.002,2130.0,2129.2,1.1432313]
[1770550691839,0.002,2130.0,2129.5,1.1432313]
[1770550692036,0.002,2130.0,2129.5,1.1031483]
[1770550692231,0.002,2129.8,2129.5,1.1031483]
[1770550692950,0.002,2130.0,2129.5,1.1031483]
[1770550693153,2.25741898,2130.6,2129.5,1.1031483]
[1770550693447,1.22725073,2130.5,2129.6,1.17392937]
[1770550694124,0.05378203,2130.5,2129.6,1.17392937]
[1770550694329,1.084,2130.6,2129.6,1.17392937]
[1770550694851,1.11593235,2131.6,2130.1,1.23966889]
[1770550695031,4.4547729,2131.7,2130.2,4.48158589]
[1770550695232,0.01923839,2131.6,2130.2,4.48158589]
[1770550695431,0.01923839,2131.6,2130.3,1.17354363]
[1770550695432,1.17288294,2131.5,2130.3,1.17354363]
[1770550695745,0.01923839,2131.4,2130.3,1.17354363]
[1770550696336,0.01923839,2131.4,2130.2,4.45556561]
[1770550697154,0.01923839,2131.4,2130.2,5.6551515]
[1770550697527,1.172993,2131.3,2130.2,4.45556561]
[1770550697842,1.172993,2131.3,2130.1,4.73460497]
[1770550697843,4.41717074,2131.2,2130.1,1.17362226]
[1770550698029,4.41717074,2131.2,2130.2,1.17358764]
[1770550698230,3.30123839,2131.2,2130.3,1.19958589]
[1770550699359,3.30123839,2131.2,2130.2,1.17358764]
[1770550699548,1.17310309,2131.1,2130.2,3.281]
[1770550699749,0.01923839,2131.0,2130.2,3.281]
[1770550699945,1.17310309,2131.1,2130.2,3.281]
[1770550700145,1.17310309,2131.1,2129.9,1.17373158]
[1770550700146,0.01923839,2131.0,2129.9,1.17373158]
[1770550700650,0.01923839,2131.0,2129.9,1.17376307]
[1770550700852,1.13517074,2131.0,2129.7,3.281]
[1770550701050,1.13517074,2131.0,2129.7,4.4548707]
[1770550701257,1.13517074,2131.0,2129.7,3.281]
[1770550701628,1.11593235,2130.8,2129.5,1.21857996]
[1770550701833,4.41617074,2130.7,2129.6,1.17392104]
[1770550702029,4.41617074,2130.7,2129.4,0.04462937]
[1770550702363,4.41617074,2130.7,2129.5,1.17394773]
[1770550702655,4.41617074,2130.7,2129.5,1.173952]
[1770550702846,3.30023839,2130.7,2129.7,1.17385896]
[1770550703249,3.30023839,2130.7,2129.4,1.21865548]
[1770550703451,3.30023839,2130.7,2129.4,0.04462308]
[1770550703757,3.30023839,2130.7,2129.4,1.21861863]
[1770550703758,1.17337839,2130.6,2129.4,1.21861863]
[1770550704060,0.01923839,2130.5,2129.4,1.21861863]
[1770550704760,0.02123839,2130.5,2129.8,0.001]
[1770550705858,1.17348854,2130.4,2129.8,0.001]
[1770550707759,1.17547052,2130.5,2129.8,0.001]
[1770550707931,1.17547052,2130.5,2129.1,4.69615854]
[1770550707932,0.040083,2130.3,2128.5,1.19958589]
[1770550708138,0.040083,2129.4,2128.5,0.0008]
[1770550708350,0.040083,2129.0,2128.5,0.0008]
[1770550708530,0.040083,2129.0,2128.4,0.001]
[1770550708751,0.7232377,2129.0,2128.4,0.001]
[1770550708950,0.040083,2129.0,2128.4,0.001]
[1770550709156,1.11593235,2129.1,2128.1,0.001]
[1770550709456,0.040083,2128.9,2128.1,0.001]
[1770550709651,3.282,2128.8,2128.1,0.001]
[1770550709956,1.1744257,2128.7,2128.1,0.001]
[1770550710150,1.36154994,2129.5,2128.1,0.001]
[1770550710350,3.12603963,2129.4,2128.1,0.001]
[1770550712040,0.040083,2129.3,2128.1,0.001]
[1770550714041,1.17414991,2129.2,2128.1,0.001]
[1770550716472,2.39230922,2129.2,2128.1,0.001]
[1770550716649,1.21815931,2129.1,2128.1,0.001]
[1770550717747,1.27686956,2129.1,2128.1,0.001]
[1770550717953,0.040083,2129.0,2128.1,0.001]
[1770550718273,3.283,2128.9,2128.1,0.001]
[1770550718473,1.17437053,2128.8,2128.1,0.001]
[1770550719762,2.39252984,2128.8,2128.1,0.001]
[1770550720277,2.39252984,2128.8,2128.0,0.001]
[1770550721048,0.05872128,2128.7,2128.0,0.001]
[1770550722285,1.21815931,2128.6,2128.0,0.001]
[1770550722593,3.3417268,2128.5,2127.8,0.001]
[1770550722747,1.25824231,2128.6,2127.8,0.001]
[1770550722748,1.17448087,2128.6,2127.8,0.001]
[1770550722950,1.17448087,2128.6,2127.8,1.19006766]
[1770550723667,1.23308905,2128.8,2127.8,1.19006766]
[1770550724576,1.17414991,2129.2,2127.8,1.19006766]
[1770550724775,3.284,2129.1,2128.0,1.18906766]
[1770550724961,3.34271025,2129.1,2128.0,1.18906766]
[1770550726898,1.17426021,2129.0,2128.1,2.36382448]
[1770550727554,1.17426021,2129.0,2128.1,1.18906766]
[1770550727757,0.05871025,2129.1,2128.4,1.18906766]
[1770550727957,4.01287425,2129.7,2128.4,1.18906766]
[1770550728276,0.040083,2129.4,2128.1,4.47306766]
[1770550728454,0.05870473,2129.3,2128.1,4.47306766]
[1770550728649,0.05869922,2129.5,2128.2,1.18906766]
[1770550728877,1.17403963,2129.4,2128.3,2.36371409]
[1770550729067,0.05870473,2129.3,2128.3,2.36371409]
[1770550730261,0.05870473,2129.3,2128.3,2.36471409]
[1770550730665,1.17603963,2129.4,2128.4,1.18906766]
[1770550730863,1.17603963,2129.4,2128.5,1.17453605]
[1770550731067,0.002,2129.4,2128.6,1.18906766]
[1770550731484,0.002,2129.4,2128.8,1.22915066]
[1770550731653,0.002,2129.4,2128.8,1.18906766]
[1770550732986,0.002,2129.4,2128.9,1.17431537]
[1770550733194,0.002,2129.4,2128.9,2.36338303]
[1770550735163,0.002,2129.4,2129.0,1.18906766]
[1770550736990,0.002,2130.5,2130.0,1.17370892]
[1770550737302,1.17483449,2131.6,2130.2,1.22915066]
[1770550737798,1.17483449,2131.6,2130.2,1.18906766]
[1770550739035,0.002,2131.6,2130.4,1.18906766]
[1770550740528,0.002,2131.6,2130.6,1.18906766]
[1770550740686,0.002,2131.6,2130.3,1.17354363]
[1770550740687,0.002,2131.6,2130.8,1.18906766]
[1770550741190,0.002,2131.6,2130.9,2.36228085]
[1770550741718,0.002,2131.6,2131.0,1.18906766]
[1770550743301,0.002,2131.4,2131.1,1.17310309]
[1770550743623,0.31830034,2131.8,2131.2,3.282]
[1770550744324,1.49103261,2131.8,2131.2,3.282]
[1770550745622,1.49103261,2131.8,2130.8,4.45426673]
[1770550745923,2.72834737,2131.8,2130.8,3.281]
[1770550746124,1.19723176,2131.7,2130.8,3.281]
[1770550746623,0.22889734,2131.8,2131.3,1.17601025]
[1770550746934,4.6914314,2132.5,2131.4,3.281]
[1770550746935,1.17437023,2132.5,2131.4,3.281]
[1770550747527,0.002,2132.5,2131.6,1.17601025]
[1770550748424,0.003,2132.8,2131.6,1.17601025]
[1770550748732,0.0008,2132.7,2131.6,1.17601025]
[1770550749435,0.0008,2132.7,2131.7,1.1727729]
[1770550749603,0.0008,2132.7,2131.8,1.17601025]
[1770550749929,0.0008,2132.7,2131.7,1.1727729]
[1770550749930,0.0008,2132.7,2132.0,1.17601025]
[1770550750141,0.0008,2132.7,2131.9,3.28]
[1770550750446,0.0008,2132.7,2132.0,3.28]
[1770550750644,0.040083,2132.6,2131.6,1.17281893]
[1770550750940,0.040083,2132.0,2130.9,1.17318993]
[1770550751122,0.040083,2131.7,2130.8,4.45325367]
[1770550751323,0.040083,2132.0,2131.0,1.17315298]
[1770550751640,1.17266288,2131.9,2130.8,4.45324657]
[1770550752749,1.21274588,2131.9,2130.8,4.45324657]
[1770550752930,1.17266288,2131.9,2130.8,4.45324657]
[1770550753438,1.17264435,2132.0,2130.9,1.17601025]
[1770550753731,0.040083,2132.0,2131.0,1.17315814]
[1770550754508,0.040083,2132.0,2130.8,3.28]
[1770550754509,0.040083,2131.7,2130.8,3.28]
[1770550754715,0.040083,2131.7,2130.8,4.45326498]
[1770550755032,0.040083,2131.7,2130.8,4.45323535]
[1770550755218,0.040083,2131.7,2131.6,0.001]
[1770550755539,0.040083,2131.7,2130.8,4.45322989]
[1770550755730,1.17282792,2131.6,2131.4,0.001]
[1770550756525,1.17282792,2131.6,2130.8,3.28]
[1770550756920,1.14465222,2131.2,2130.5,0.001]
[1770550757123,1.10456922,2131.2,2130.5,0.001]
[1770550757914,1.17310309,2131.1,2130.5,0.001]
[1770550758611,1.17308064,2131.2,2130.5,0.001]
[1770550758810,1.10456922,2131.6,2130.5,3.281]
[1770550759005,1.17291954,2131.5,2130.5,3.281]
[1770550759939,1.17271789,2131.8,2130.6,1.17337839]
[1770550760633,2.27728711,2131.8,2130.6,1.17337839]
[1770550761657,1.17255288,2132.1,2130.7,1.10552662]
[1770550761854,2.2771221,2132.1,2130.8,1.17326825]
[1770550763055,1.14465222,2131.9,2130.6,1.17333837]
[1770550763231,0.040083,2131.6,2130.6,1.17333837]
[1770550763761,1.10456922,2131.8,2130.6,1.1733404]
[1770550764057,2.27734212,2131.7,2130.6,1.1733404]
[1770550764449,1.14465222,2131.6,2130.5,4.45439617]
[1770550765537,1.14465222,2131.3,2130.5,0.001]
[1770550765859,4.42465222,2131.3,2129.7,1.10552662]
[1770550766060,1.17304804,2131.2,2129.8,1.17381913]
[1770550766262,1.17304804,2131.2,2129.9,1.10552662]
[1770550768061,1.10456922,2131.1,2129.8,1.17381913]
[1770550768250,1.10456922,2131.1,2129.7,4.69549448]
[1770550768251,1.17315814,2131.0,2129.7,4.69549448]
[1770550768759,1.10456922,2130.9,2129.6,1.17388811]
[1770550768962,4.69263256,2131.2,2129.7,1.10552662]
[1770550768963,4.69227024,2131.2,2129.7,1.10552662]
[1770550769167,4.69227024,2131.2,2129.7,1.14660962]
[1770550770268,1.17304804,2131.2,2129.9,1.10552662]
[1770550771738,1.10456922,2131.1,2129.8,3.28]
[1770550771963,1.10456922,2131.0,2129.8,3.28]
[1770550772368,1.17321319,2130.9,2129.9,1.17376402]
[1770550772885,1.14465222,2130.5,2129.7,0.001]
[1770550773177,0.040083,2130.1,2129.7,0.001]
[1770550773353,0.040083,2130.2,2129.7,0.001]
[1770550773549,0.040083,2130.2,2129.5,0.001]
[1770550773550,0.040083,2129.9,2129.5,0.001]
[1770550773748,0.040083,2129.9,2128.9,3.28]
[1770550773952,0.040083,2129.9,2129.0,1.10552662]
[1770550773953,3.28,2129.9,2129.0,1.10552662]
[1770550774256,0.040083,2130.7,2129.1,1.10552662]
[1770550774454,1.10456922,2130.5,2129.2,1.17414991]
[1770550774778,2.27782278,2130.9,2129.3,1.14560962]
[1770550774954,2.27782278,2130.9,2129.3,1.10552662]
[1770550775151,1.14465222,2130.6,2129.2,1.17414991]
[1770550775367,1.10456922,2130.6,2129.3,3.28]
[1770550776082,1.21333656,2130.9,2129.3,3.28]
[1770550776251,1.17325356,2130.9,2129.3,4.49843919]
[1770550776457,1.17325356,2130.9,2129.4,2.39247882]
[1770550777869,2.34672923,2130.9,2129.4,2.39247882]
[1770550778369,1.17332332,2130.7,2129.4,1.17403963]
[1770550778571,0.040083,2130.6,2129.4,1.17403963]
[1770550779678,1.17332332,2130.7,2129.4,1.17403963]
[1770550779679,1.17332332,2130.7,2129.4,2.39247882]
[1770550780455,1.17347567,2130.9,2129.4,2.39247882]
[1770550780675,1.17347567,2130.9,2129.4,1.17403963]
[1770550781258,1.21324114,2131.0,2129.3,3.28]
[1770550781259,1.21355867,2130.7,2129.3,3.28]
[1770550781483,1.21355867,2130.1,2129.3,3.28]
[1770550782592,1.17370892,2130.0,2129.6,0.001]
[1770550782775,1.17370892,2130.0,2129.3,3.28]
[1770550782981,1.17368725,2130.1,2129.3,4.45407739]
[1770550783161,1.17368725,2130.1,2129.4,0.001]
[1770550783466,1.17354363,2130.3,2129.4,0.001]
[1770550783782,4.45452932,2130.4,2129.4,0.001]
[1770550783984,1.17352932,2130.4,2129.4,0.001]
[1770550784183,1.17347113,2130.5,2129.4,0.001]
[1770550784483,0.002,2130.7,2129.4,0.001]
[1770550785691,0.042083,2130.7,2129.4,0.001]
[1770550785897,1.21555867,2130.7,2129.4,0.001]
[1770550786697,0.002,2130.7,2129.5,4.49943919]
[1770550786905,0.002,2130.7,2129.6,1.21843919]
[1770550787184,1.17532813,2130.7,2129.6,1.21843919]
[1770550787391,1.17532813,2130.7,2129.5,3.281]
[1770550788178,0.002,2130.7,2129.6,1.21843919]
[1770550788687,0.0028,2130.7,2129.7,2.39231344]
[1770550789699,0.0028,2130.7,2129.7,1.17387425]
[1770550789876,1.21355867,2130.6,2129.4,0.001]
[1770550790081,1.21355867,2130.6,2129.4,1.17501572]
[1770550790288,1.21355867,2130.6,2129.4,1.17500061]
[1770550790814,1.17343346,2130.5,2129.4,0.001]
[1770550791893,1.17347567,2130.5,2129.4,0.001]
[1770550792137,1.17615677,2130.7,2129.4,0.001]
[1770550792506,1.17615677,2130.7,2129.4,1.21943919]
[1770550793611,0.0028,2130.7,2129.5,1.1739845]
[1770550793818,0.0028,2130.7,2129.6,1.21843919]
[1770550794116,0.0028,2130.7,2129.7,3.281]
[1770550795707,0.0028,2130.7,2129.8,1.17381913]
[1770550796823,1.17347567,2130.5,2129.6,0.001]
[1770550797113,0.040083,2130.6,2129.6,0.001]
[1770550797114,1.21355867,2130.6,2129.6,0.001]
[1770550797719,1.17343346,2130.5,2129.6,0.001]
[1770550797914,0.040083,2130.3,2129.6,0.001]
[1770550798233,1.21355867,2130.3,2129.6,0.001]
[1770550798428,1.17347567,2129.9,2128.4,1.21843919]
[1770550798615,1.17347567,2129.9,2128.8,1.17436828]
[1770550798815,1.17347567,2129.9,2128.7,1.17518998]
[1770550799138,0.040083,2129.7,2128.8,1.17436128]
[1770550799339,1.21355867,2129.7,2128.8,1.17436693]
[1770550799549,1.17347567,2129.7,2128.7,0.0008]
[1770550799715,1.17376402,2129.9,2128.7,1.1752257]
[1770550799916,2.34723969,2129.9,2128.7,1.1752257]
[1770550800347,1.17347567,2129.8,2128.7,1.1752257]
[1770550800848,0.040083,2129.7,2128.7,0.0008]
[1770550801017,0.040083,2129.0,2128.7,0.0008]
[1770550801208,0.040083,2129.0,2128.1,4.69901882]
[1770550801408,0.040083,2129.0,2128.2,1.17465776]
[1770550801815,4.7364034,2129.4,2128.1,4.69901882]
[1770550802011,1.17409477,2129.3,2128.1,4.69901882]
[1770550802241,1.21355867,2129.1,2128.1,1.17475682]
[1770550802931,1.21355867,2129.1,2128.0,3.283]
[1770550803113,1.21355867,2129.1,2128.0,4.45780749]
[1770550803440,1.17347567,2129.1,2128.0,4.45780749]
[1770550803841,1.17426021,2129.0,2128.0,4.45780749]
[1770550804226,2.38781888,2129.0,2128.0,4.45781172]
[1770550806148,2.38781888,2129.0,2128.0,4.45781184]
[1770550807441,2.38781888,2129.0,2128.0,3.283]
[1770550807774,2.38781888,2129.0,2128.0,4.45781044]
[1770550808335,2.38781888,2129.0,2128.2,0.001]
[1770550809843,1.24134447,2128.6,2128.2,0.001]
[1770550810168,0.040083,2128.4,2127.8,0.001]
[1770550810465,1.17464643,2128.3,2127.8,0.001]
[1770550810839,0.040083,2128.1,2127.8,0.001]
[1770550811946,1.17464643,2128.3,2127.8,0.001]
[1770550814166,2.3630378,2128.3,2127.8,0.001]
[1770550815971,1.14830837,2128.2,2127.8,0.001]
[1770550816381,1.21472943,2128.3,2127.8,0.001]
[1770550816863,4.49872943,2128.3,2127.8,0.001]
[1770550817260,5.6470378,2128.3,2127.8,0.001]
[1770550817883,0.040083,2128.0,2127.8,0.001]
[1770550818186,0.040083,2128.0,2127.4,0.001]
[1770550819064,1.14830837,2127.5,2127.3,0.001]
[1770550819246,3.284,2127.5,2127.3,0.001]
[1770550819645,3.284,2127.5,2127.1,0.001]
[1770550819846,0.040083,2127.3,2127.1,0.001]
[1770550820245,3.284,2127.5,2127.1,0.001]
[1770550820670,3.284,2127.4,2127.1,0.001]
[1770550820846,1.1751986,2127.3,2127.1,0.001]
[1770550821048,1.17501234,2127.7,2127.1,0.001]
[1770550821250,0.040083,2127.6,2127.1,0.001]
[1770550821566,0.040083,2127.6,2127.5,0.001]
[1770550821769,0.040083,2127.6,2127.1,0.001]
[1770550823279,4.45901739,2127.7,2127.1,0.001]
[1770550824177,0.040083,2127.4,2127.1,0.001]
[1770550824576,1.17501739,2127.7,2127.1,0.001]
[1770550824777,0.040083,2127.5,2127.1,0.001]
[1770550824967,1.17501739,2127.7,2127.1,0.001]
[1770550825288,0.040083,2127.5,2127.1,0.001]
[1770550826263,0.040083,2127.2,2127.1,0.001]
[1770550826464,1.2151726,2127.5,2127.1,0.001]
[1770550826996,0.040083,2127.2,2127.1,0.001]
[1770550827377,1.21533685,2127.2,2127.1,0.001]
[1770550827974,1.14830837,2127.1,2126.8,0.001]
[1770550828279,1.14830837,2127.1,2126.3,0.001]
[1770550828280,3.285,2127.1,2126.3,1.17674552]
[1770550828588,1.21521416,2127.5,2126.3,1.17674552]
[1770550828774,4.46013116,2127.5,2126.4,1.18485321]
[1770550829305,4.46009956,2127.5,2126.4,1.18485321]
[1770550829600,4.46009956,2127.5,2126.6,1.18485321]
[1770550829601,3.285,2127.5,2126.6,1.18485321]
[1770550829768,1.17506976,2127.6,2126.6,1.18485321]
[1770550830576,4.46000423,2127.7,2126.6,1.18485321]
[1770550832300,4.46000423,2127.7,2126.7,1.17553016]
[1770550832967,0.040083,2127.5,2126.7,1.17553016]
[1770550833167,3.285,2127.7,2126.7,1.17553016]
[1770550833408,4.49993158,2128.0,2126.8,1.18485321]
[1770550833576,0.040083,2127.7,2126.7,1.17553016]
[1770550834404,1.1750329,2127.6,2126.8,0.001]
[1770550834568,0.002,2127.4,2126.8,0.001]
[1770550836106,0.040083,2127.3,2126.8,0.001]
[1770550836503,1.21531119,2127.3,2126.8,0.001]
[1770550837086,2.50603004,2127.3,2126.8,0.001]
[1770550838116,3.286,2127.2,2126.8,0.001]
[1770550838322,1.17714502,2127.4,2126.8,0.001]
[1770550838507,0.002,2127.4,2126.8,0.001]
[1770550839120,0.002,2127.4,2126.8,1.21804268]
[1770550839691,0.002,2127.6,2126.9,1.24731338]
[1770550840490,0.002,2127.6,2127.0,1.17536436]
[1770550840692,0.002,2127.6,2127.1,0.03036728]
[1770550842525,0.002,2127.6,2127.2,1.17525385]
[1770550843518,0.002,2127.6,2127.1,1.20564405]
[1770550844523,0.002,2127.6,2127.1,1.17529818]
[1770550845630,0.002,2127.6,2127.2,0.03036442]
[1770550847315,0.002,2127.4,2127.3,1.1751986]
[1770550847817,0.002,2127.6,2127.3,1.1751986]
[1770550848312,0.002,2127.6,2127.4,0.03036156]
[1770550848841,0.31902387,2128.0,2127.4,0.03036156]
[1770550849433,0.31902387,2128.0,2127.5,1.17508813]
[1770550850102,0.002,2128.5,2127.5,2.39213081]
[1770550850307,1.17653751,2128.5,2127.5,2.39213081]
[1770550850809,1.49856199,2128.5,2127.5,2.39213081]
[1770550851011,1.53864499,2128.5,2127.5,2.39213081]
[1770550851218,1.53864499,2128.5,2127.6,0.0303587]
[1770550851419,1.53864499,2128.5,2127.7,1.17497767]
[1770550851727,1.53864499,2128.5,2127.6,4.73031778]
[1770550851728,2.82936384,2128.5,2127.6,1.20535339]
[1770550851916,2.82936384,2128.5,2127.6,1.17499469]
[1770550852119,1.33080185,2127.9,2127.1,4.46026448]
[1770550852320,1.33080185,2127.9,2127.2,1.17522804]
[1770550852508,1.33080185,2127.9,2127.1,4.46026642]
[1770550852912,1.29071885,2127.9,2126.8,0.001]
[1770550853227,3.285,2128.0,2127.2,1.17522635]
[1770550853438,1.17486724,2127.9,2126.9,1.17541962]
[1770550853832,4.45982148,2128.0,2127.0,1.21704268]
[1770550854413,5.75054033,2128.0,2126.9,1.17541962]
[1770550854632,3.285,2128.0,2127.0,1.21704268]
[1770550854930,4.45981598,2128.0,2127.0,1.21704268]
[1770550855308,2.78930887,2128.5,2127.2,1.21704268]
[1770550855515,2.78930887,2128.5,2127.4,2.39218604]
[1770550856024,1.33080185,2128.4,2127.4,1.17514336]
[1770550856837,1.49859002,2128.5,2127.4,1.17514336]
[1770550856838,1.49859002,2128.5,2127.4,2.39218604]
[1770550857332,0.32402448,2128.5,2127.5,1.21704268]
[1770550857526,0.32402448,2128.5,2127.6,1.1750329]
[1770550857722,1.49856513,2128.5,2127.6,1.1750329]
[1770550858113,1.49856255,2128.5,2127.6,1.1750329]
[1770550858536,2.8293644,2128.5,2127.6,1.1750329]
[1770550858837,1.29071885,2128.4,2127.6,1.1750329]
[1770550859534,1.53864555,2128.5,2127.5,1.21704268]
[1770550859741,0.32402448,2128.5,2127.5,1.21704268]
[1770550859935,0.002,2128.2,2127.5,1.21704268]
[1770550860237,0.002,2128.2,2127.4,4.70013541]
[1770550860436,1.33080185,2128.1,2127.3,1.17615685]
[1770550860643,1.33080185,2128.1,2127.3,1.17619654]
[1770550861320,1.33080185,2128.1,2127.3,1.17619212]
[1770550861942,1.17481203,2128.0,2127.3,0.001]
[1770550862447,0.002,2128.2,2127.3,0.001]
[1770550862622,1.17670262,2128.2,2127.3,0.001]
[1770550863134,1.17670261,2128.2,2127.3,0.001]
[1770550865129,1.29071885,2128.1,2127.3,0.001]
[1770550865741,1.33080185,2128.1,2127.3,0.001]
[1770550865930,1.29071885,2128.1,2127.3,0.001]
[1770550867424,1.17477371,2128.1,2127.3,0.001]
[1770550868527,0.002,2128.2,2127.3,0.001]
[1770550868743,2.42106695,2128.2,2127.3,0.001]
[1770550868946,1.24436051,2128.1,2127.3,0.001]
[1770550869336,2.41917254,2128.0,2127.3,0.001]
[1770550869550,0.042083,2128.2,2127.3,0.001]
[1770550869551,0.002,2128.2,2127.3,0.001]
[1770550869850,0.002,2128.2,2127.3,1.13057953]
[1770550870035,0.002,2129.0,2127.8,1.12957953]
[1770550870235,1.1763789,2128.8,2127.9,3.285]
[1770550870434,0.002,2128.8,2127.9,4.41457953]
[1770550870634,1.24636051,2128.8,2127.9,3.285]
[1770550870835,0.002,2128.8,2128.0,1.12957953]
[1770550871556,0.002,2129.0,2128.2,1.12957953]
[1770550871849,0.002,2129.0,2128.1,1.17475682]
[1770550872233,0.040083,2129.6,2128.1,1.17475682]
[1770550872234,1.49831802,2129.8,2128.5,1.12957953]
[1770550872435,1.49831802,2129.8,2128.6,4.41457953]
[1770550872835,0.002,2128.8,2128.6,3.285]
[1770550873030,1.24436051,2129.5,2128.6,3.285]
[1770550873666,2.41840014,2129.4,2128.6,4.45944653]
[1770550873970,2.36015814,2129.7,2128.6,4.45944653]
[1770550875663,0.002,2129.7,2128.9,1.20813137]
[1770550876174,0.002,2129.7,2128.8,1.17437053]
[1770550877171,0.002,2129.7,2128.8,2.3825019]
[1770550878669,0.002,2129.7,2128.9,1.20813137]
[1770550879646,0.002,2129.7,2129.0,2.38239158]
[1770550879846,0.002,2129.7,2129.1,3.283]
[1770550884074,0.002,2129.7,2129.2,1.17414991]
[1770550885058,0.002,2129.9,2129.2,1.17414991]
[1770550885871,0.002,2129.5,2129.2,1.17414991]
[1770550886185,0.002,2129.5,2129.1,8.28716924]
[1770550887182,1.18623077,2129.5,2129.0,0.001]
[1770550888406,0.002,2129.5,2129.0,0.001]
[1770550888690,1.17600168,2129.5,2129.0,0.001]
[1770550889274,2.36023245,2129.5,2129.0,0.001]
[1770550890978,1.18423077,2129.4,2129.0,0.001]
[1770550891690,0.0008,2129.3,2129.0,0.001]
[1770550892589,1.18423077,2129.2,2129.0,0.001]
[1770550893774,0.0008,2129.3,2129.0,0.001]
[1770550894377,1.18503077,2129.3,2129.0,0.001]
[1770550894970,2.35838068,2129.2,2129.0,0.001]
[1770550895395,1.18423077,2129.1,2129.0,0.001]
[1770550895693,1.18423077,2129.1,2128.8,0.001]
[1770550896796,0.0008,2129.4,2128.8,0.001]
[1770550896971,0.002,2129.5,2128.8,0.001]
[1770550898587,0.0028,2129.5,2128.8,0.001]
[1770550898784,0.0028,2129.5,2129.0,0.001]
[1770550901073,0.0028,2129.5,2127.9,0.001]
[1770550901074,1.16420667,2129.1,2127.9,0.001]
[1770550901274,1.16420667,2128.5,2127.9,0.001]
[1770550901684,0.0008,2128.4,2127.9,0.001]
[1770550901903,1.16500667,2128.4,2127.9,0.001]
[1770550903374,1.17542168,2128.4,2127.9,0.001]
[1770550904598,2.33962835,2128.4,2127.9,0.001]
[1770550906170,0.0008,2128.4,2127.9,0.001]
[1770550906374,1.1753915,2128.4,2127.9,0.001]
[1770550907990,0.0008,2128.4,2127.9,0.001]
[1770550909480,1.16500667,2128.4,2127.9,0.001]
[1770550910288,1.17464643,2128.3,2127.9,0.001]
[1770550910818,0.0008,2128.2,2128.1,0.001]
[1770550911699,1.17459877,2128.4,2128.1,0.001]
[1770550911885,0.0008,2128.3,2128.1,0.001]
[1770550912514,1.17448087,2128.6,2128.1,0.001]
[1770550912717,1.17528087,2128.6,2128.1,0.001]
[1770550915188,2.33948754,2128.6,2128.1,0.001]
[1770550915920,1.16420667,2128.5,2128.1,0.001]
[1770550916334,1.16420667,2128.3,2128.1,0.001]
[1770550916824,0.0008,2128.2,2128.1,0.001]
[1770550916987,0.0008,2128.5,2128.1,0.001]
[1770550921911,1.16420667,2128.5,2128.1,0.001]
[1770550922215,0.0008,2128.4,2128.1,0.001]
[1770550923232,1.16420667,2129.0,2128.1,0.001]
[1770550923428,1.16420667,2128.8,2128.3,0.001]
[1770550923624,0.002,2128.5,2128.3,0.001]
[1770550926149,0.002,2128.5,2128.3,1.13783529]
[1770550926434,0.002,2129.3,2128.3,1.13783529]
[1770550926632,0.0028,2129.2,2128.3,1.13783529]
[1770550926932,0.002,2129.3,2128.5,1.13683529]
[1770550927221,0.002,2129.3,2128.7,1.17691829]
[1770550927625,0.002,2129.3,2128.8,1.17437053]
[1770550927807,0.002,2129.3,2128.9,1.13683529]
[1770550928122,0.002,2129.7,2129.1,1.13683529]
[1770550928727,0.002,2129.7,2129.3,1.17691829]
[1770550928912,0.002,2129.9,2129.4,1.13683529]
[1770550929107,0.002,2129.9,2129.6,0.040083]
[1770550929314,0.002,2130.4,2129.6,0.040083]
[1770550929496,0.0028,2130.3,2129.6,0.040083]
[1770550929702,0.0028,2130.3,2129.7,1.17387425]
[1770550930332,0.0028,2130.2,2129.7,1.17387425]
[1770550931133,0.002,2130.4,2129.7,1.17387425]
[1770550931433,0.0028,2130.3,2129.7,1.17387425]
[1770550932502,0.0028,2130.3,2129.8,1.13683529]
[1770550932905,0.002,2130.4,2129.8,1.13683529]
[1770550933311,0.002,2130.4,2129.9,3.283]
[1770550934929,0.002,2130.4,2130.0,1.17370892]
[1770550937445,0.002,2130.5,2130.0,1.17370892]
[1770550937909,1.11184714,2130.5,2128.6,0.001]
[1770550938113,1.11184714,2130.5,2129.6,1.17392325]
[1770550938553,1.11184714,2130.5,2129.7,1.17387414]
[1770550938708,1.11184714,2130.5,2129.6,1.17388816]
[1770550938906,1.10984714,2130.3,2129.1,2.2926582]
[1770550939106,1.10984714,2130.3,2129.2,1.11845314]